bitfinex/quotes_SOLUSD_20250310
["timestamp","ask_amount","ask_price","bid_price","bid_amount"]
[1741650395635,220.98,119.87,119.85,8.3437]
[1741650395929,220.98,119.87,119.85,51.9661985]
[1741650396234,220.98,119.87,119.85,8.3437]
[1741650396915,220.98,119.87,119.85,51.9661985]
[1741650398033,220.98,119.87,119.86,43.6224985]
[1741650398714,0.063,119.88,119.87,8.3423]
[1741650402243,0.063,119.88,119.85,47.5360985]
[1741650402442,0.063,119.88,119.86,8.3429]
[1741650402827,0.063,119.88,119.86,51.9653985]
[1741650403224,0.063,119.88,119.86,8.3429]
[1741650403432,0.063,119.92,119.87,43.6224985]
[1741650403740,0.063,119.92,119.9,43.6224985]
[1741650403941,8.543,119.92,119.9,43.6224985]
[1741650404321,8.543,119.92,119.91,8.3395]
[1741650405019,0.063,119.92,119.91,8.3395]
[1741650405342,8.543,119.92,119.91,8.3395]
[1741650405925,8.543,119.92,119.91,51.9619985]
[1741650406134,8.543,119.92,119.91,8.3395]
[1741650406322,0.063,119.92,119.9,8.3402]
[1741650406844,0.063,119.92,119.9,51.9626985]
[1741650407532,0.063,119.92,119.91,43.6224985]
[1741650407924,0.063,119.92,119.9,51.9626985]
[1741650409357,0.063,119.92,119.9,8.3402]
[1741650409724,0.063,119.92,119.9,51.9626985]
[1741650410632,0.063,119.92,119.91,43.6224985]
[1741650413127,0.063,119.92,119.91,51.9619985]
[1741650413328,0.063,119.92,119.9,8.3399]
[1741650414046,0.063,119.92,119.89,51.6732985]
[1741650414254,0.063,119.92,119.89,16.3914]
[1741650414639,0.063,119.92,119.89,60.0138985]
[1741650415045,0.063,119.92,119.89,16.3914]
[1741650415250,0.063,119.92,119.89,8.0508]
[1741650415459,0.063,119.92,119.89,16.3916]
[1741650416058,0.063,119.92,119.89,8.0508]
[1741650416264,0.34732314,119.92,119.89,8.0508]
[1741650416552,0.28432314,119.9,119.89,8.0508]
[1741650416856,8.74432314,119.9,119.89,8.0508]
[1741650417536,8.60216157,119.9,119.89,8.0508]
[1741650417732,1.25712394,119.91,119.89,8.0508]
[1741650417931,8.46,119.9,119.89,8.0508]
[1741650418150,9.71712394,119.9,119.89,8.0508]
[1741650418755,8.46,119.9,119.89,8.0508]
[1741650419533,8.60216157,119.9,119.89,8.0508]
[1741650419738,9.85928551,119.9,119.89,8.0508]
[1741650420557,18.34164708,119.9,119.89,8.0508]
[1741650420751,20.34164708,119.9,119.89,8.0508]
[1741650421055,18.34164708,119.9,119.89,8.0508]
[1741650421357,18.36164708,119.9,119.89,8.0508]
[1741650421648,9.73712394,119.9,119.89,8.0508]
[1741650421852,8.48,119.9,119.89,8.0508]
[1741650422043,8.48,119.9,119.89,16.3917]
[1741650423435,0.063,119.92,119.89,80.8665985]
[1741650423639,0.063,119.92,119.9,43.6224985]
[1741650423640,8.543,119.92,119.9,43.6224985]
[1741650424554,8.543,119.92,119.89,16.3917]
[1741650424746,8.543,119.92,119.89,8.0508]
[1741650424948,8.543,119.92,119.89,16.3915]
[1741650425338,8.543,119.92,119.89,8.0508]
[1741650425676,1.25712394,119.91,119.89,8.0508]
[1741650425961,16.882,119.92,119.89,8.0508]
[1741650425962,9.80012394,119.92,119.89,8.0508]
[1741650426556,18.13902394,119.92,119.89,8.0508]
[1741650427351,9.80012394,119.92,119.89,8.0508]
[1741650427572,8.543,119.92,119.89,51.9633985]
[1741650427862,8.543,119.92,119.88,0.03]
[1741650428063,8.543,119.92,119.88,8.3715]
[1741650428761,8.543,119.92,119.88,51.9939985]
[1741650429274,8.543,119.92,119.88,8.3715]
[1741650429477,8.543,119.92,119.88,51.9939985]
[1741650429848,8.543,119.92,119.88,8.3715]
[1741650430065,8.543,119.92,119.88,51.9939985]
[1741650431071,8.543,119.92,119.88,8.3715]
[1741650431247,16.8819,119.92,119.88,0.03]
[1741650431864,0.14216157,119.9,119.88,0.03]
[1741650432176,83.19928551,119.91,119.88,0.03]
[1741650432370,81.94216157,119.9,119.88,0.03]
[1741650432575,1.39928551,119.89,119.88,0.03]
[1741650432858,83.19928551,119.89,119.88,0.03]
[1741650433058,1.54144708,119.89,119.88,0.03]
[1741650433469,1.39928551,119.89,119.88,0.03]
[1741650433759,9.59802394,119.89,119.88,0.03]
[1741650433937,1.25712394,119.89,119.88,0.03]
[1741650434461,9.88234708,119.89,119.88,0.03]
[1741650434863,96.68234708,119.89,119.88,0.03]
[1741650435182,0.14216157,119.88,119.82,0.063]
[1741650435463,0.14216157,119.86,119.82,0.063]
[1741650435665,96.51712394,119.87,119.82,0.063]
[1741650435666,222.17712394,119.85,119.82,0.063]
[1741650435865,8.48656157,119.84,119.82,0.063]
[1741650436159,1.25712394,119.83,119.82,0.063]
[1741650436747,1.25712394,119.84,119.82,0.063]
[1741650437260,0.14216157,119.83,119.82,0.063]
[1741650437460,107.08432314,119.83,119.82,0.063]
[1741650437966,115.42942314,119.83,119.82,0.063]
[1741650438746,1.25712394,119.84,119.82,0.063]
[1741650438945,9.60172394,119.84,119.82,0.063]
[1741650439169,0.14216157,119.83,119.82,0.063]
[1741650439479,0.28432314,119.83,119.82,0.063]
[1741650440071,8.62942314,119.83,119.82,0.063]
[1741650440456,8.62942314,119.83,119.81,0.03]
[1741650440457,30.62942314,119.83,119.81,0.03]
[1741650440655,9.87928551,119.82,119.81,0.03]
[1741650440958,96.67928551,119.82,119.81,0.03]
[1741650441969,96.64625737,119.82,119.81,0.03]
[1741650442265,96.78841894,119.82,119.81,0.03]
[1741650442479,105.13421894,119.82,119.81,0.03]
[1741650446649,0.14216157,119.78,119.77,0.063]
[1741650446951,108.2753908,119.78,119.77,0.063]
[1741650447148,87.08432314,119.77,119.76,0.03]
[1741650447345,8.76432314,119.77,119.76,0.03]
[1741650448471,8.76432314,119.77,119.75,0.03]
[1741650448472,8.63432314,119.76,119.75,0.03]
[1741650448674,230.9453908,119.76,119.75,0.03]
[1741650448868,229.75432314,119.76,119.75,0.03]
[1741650450972,221.12,119.76,119.75,0.03]
[1741650451159,302.92,119.76,119.75,0.03]
[1741650451357,311.4,119.76,119.75,0.03]
[1741650452070,90.28,119.76,119.75,0.03]
[1741650453578,98.91432314,119.76,119.75,0.03]
[1741650453773,90.56432314,119.76,119.75,0.03]
[1741650454077,90.28,119.76,119.75,0.03]
[1741650455053,8.48,119.76,119.75,0.03]
[1741650455249,8.48,119.78,119.76,3.7299]
[1741650455450,8.48,119.78,119.77,63.6224985]
[1741650455767,8.48,119.78,119.77,20.0]
[1741650456249,221.16,119.8,119.77,20.0]
[1741650456250,8.48,119.79,119.77,20.0]
[1741650456456,8.48,119.79,119.76,3.7299]
[1741650457074,8.48,119.79,119.76,12.0798]
[1741650457571,8.48,119.79,119.76,3.7299]
[1741650457969,18.0519958,119.79,119.76,3.7299]
[1741650458170,9.7040958,119.79,119.76,3.7299]
[1741650458571,18.0520958,119.79,119.76,3.7299]
[1741650458873,9.7040958,119.79,119.76,3.7299]
[1741650459778,8.48,119.79,119.76,12.0799]
[1741650460159,8.48,119.79,119.76,55.7023985]
[1741650460555,8.48,119.79,119.76,12.0799]
[1741650460975,8.48,119.78,119.76,12.0799]
[1741650462466,8.48,119.78,119.76,55.7023985]
[1741650463272,221.16,119.8,119.77,43.6224985]
[1741650463273,8.48,119.79,119.77,43.6224985]
[1741650463672,8.48,119.8,119.77,43.6224985]
[1741650465286,8.48,119.8,119.78,51.9710985]
[1741650465989,8.48,119.8,119.79,51.2871985]
[1741650467188,8.48,119.8,119.79,59.6350985]
[1741650467574,8.543,119.8,119.79,59.6350985]
[1741650468794,0.063,119.8,119.79,59.6350985]
[1741650472377,0.063,119.8,119.79,43.28695519]
[1741650476400,0.063,119.8,119.79,8.3479]
[1741650476805,0.063,119.8,119.79,35.62225519]
[1741650476974,0.063,119.8,119.79,8.3479]
[1741650477377,0.063,119.8,119.77,27.27435519]
[1741650477581,0.063,119.8,119.79,20.0]
[1741650481207,0.063,119.8,119.76,3.7599]
[1741650482303,0.063,119.8,119.76,0.03]
[1741650483107,8.4102,119.8,119.76,20.03]
[1741650483280,8.4102,119.8,119.76,0.03]
[1741650483281,83.30841894,119.79,119.76,0.03]
[1741650484011,81.8,119.78,119.76,0.03]
[1741650484207,9.6840958,119.77,119.76,0.03]
[1741650484819,100.11771894,119.77,119.76,0.03]
[1741650487410,99.8333958,119.77,119.76,0.03]
[1741650487622,98.6093,119.77,119.76,0.03]
[1741650490020,98.75146157,119.77,119.76,0.03]
[1741650490223,16.8093,119.77,119.76,0.03]
[1741650491118,17.09362314,119.77,119.76,0.03]
[1741650491414,103.89362314,119.77,119.76,0.0001]
[1741650493321,103.89362314,119.77,119.72,0.063]
[1741650493322,87.08432314,119.76,119.72,0.063]
[1741650493615,7.79042314,119.74,119.72,0.063]
[1741650493908,1.2240958,119.73,119.72,0.063]
[1741650494698,9.5761958,119.73,119.72,0.063]
[1741650494922,30.4564958,119.73,119.65,8.3573]
[1741650495125,0.14216157,119.71,119.67,20.0]
[1741650495421,1.50841894,119.71,119.67,20.0]
[1741650495587,1.50841894,119.71,119.64,11.7707]
[1741650495793,81.8,119.7,119.64,3.9729]
[1741650496009,87.08432314,119.71,119.64,0.03]
[1741650496212,81.94216157,119.68,119.64,0.03]
[1741650496389,99.48055737,119.67,119.64,0.03]
[1741650496589,0.28432314,119.65,119.64,0.03]
[1741650496795,9.86611894,119.65,119.64,0.03]
[1741650498329,9.86611894,119.65,119.61,0.063]
[1741650498330,0.28432314,119.63,119.61,0.063]
[1741650498627,0.28432314,119.59,119.53,10.8325]
[1741650498792,1.2240958,119.58,119.53,10.8325]
[1741650499007,8.46,119.57,119.53,10.8325]
[1741650499424,1.50841894,119.56,119.51,7.5021]
[1741650499613,91.4840958,119.57,119.51,43.14385519]
[1741650499831,90.26,119.57,119.51,42.64385519]
[1741650500309,90.26,119.57,119.51,59.20630097]
[1741650500513,90.26,119.57,119.52,43.83680097]
[1741650500707,90.26,119.57,119.52,52.20310097]
[1741650501216,90.26,119.57,119.54,43.83680097]
[1741650501413,8.46,119.57,119.54,43.83680097]
[1741650501811,8.46,119.57,119.52,12.308]
[1741650502124,8.46,119.57,119.54,43.83680097]
[1741650502319,8.46,119.57,119.55,63.83680097]
[1741650502517,8.46,119.57,119.54,43.83680097]
[1741650503115,8.46,119.57,119.56,20.0]
[1741650504139,8.46,119.57,119.53,0.03]
[1741650504316,1.50841894,119.56,119.53,0.03]
[1741650504517,1.2240958,119.56,119.53,0.03]
[1741650504925,9.5886958,119.56,119.53,20.03]
[1741650505128,8.3646,119.56,119.53,20.03]
[1741650505410,8.3646,119.56,119.53,0.03]
[1741650505618,1.2240958,119.55,119.53,0.03]
[1741650505839,91.3886958,119.56,119.53,0.03]
[1741650506938,112.2986958,119.56,119.53,0.03]
[1741650507235,82.08432314,119.55,119.53,0.03]
[1741650507437,1.50841894,119.54,119.53,0.03]
[1741650507841,0.28432314,119.52,119.46,3.7279]
[1741650508034,9.7040958,119.51,119.48,20.0]
[1741650508233,9.7040958,119.51,119.45,43.83680097]
[1741650508234,91.5040958,119.51,119.45,43.83680097]
[1741650508632,83.30841894,119.5,119.44,43.83680097]
[1741650508834,82.08432314,119.5,119.44,43.83680097]
[1741650509022,82.08432314,119.5,119.44,52.20870097]
[1741650509521,82.08432314,119.5,119.44,52.20910097]
[1741650509840,83.30841894,119.5,119.44,51.70910097]
[1741650510049,16.8476,119.51,119.43,64.03111761]
[1741650510342,0.28432314,119.5,119.43,55.65831761]
[1741650510528,0.28432314,119.5,119.45,43.83680097]
[1741650510728,18.0716958,119.51,119.46,63.83680097]
[1741650510936,18.0716958,119.51,119.46,20.0]
[1741650511650,82.08432314,119.5,119.46,20.0]
[1741650511819,1.2240958,119.49,119.43,0.31551664]
[1741650512145,1.2240958,119.49,119.45,20.0]
[1741650512336,83.0240958,119.49,119.45,20.0]
[1741650512542,303.60432314,119.48,119.43,0.31551664]
[1741650512847,83.0240958,119.47,119.43,0.31551664]
[1741650513026,90.56432314,119.46,119.43,0.31551664]
[1741650513227,8.65672314,119.44,119.43,0.31551664]
[1741650513429,90.45672314,119.44,119.43,0.31551664]
[1741650513622,1.2240958,119.45,119.43,0.31551664]
[1741650513623,96.3959958,119.45,119.43,0.31551664]
[1741650513821,8.3719,119.45,119.43,0.31551664]
[1741650514138,0.28432314,119.45,119.43,0.31551664]
[1741650514336,8.76432314,119.44,119.43,0.31551664]
[1741650514535,9.98841894,119.44,119.43,0.34551664]
[1741650515426,18.36081894,119.44,119.43,0.34551664]
[1741650517049,0.28432314,119.42,119.41,0.25241331]
[1741650517344,0.14216157,119.38,119.3,43.83680097]
[1741650517520,0.28432314,119.36,119.3,43.83680097]
[1741650517723,1.50841894,119.36,119.3,43.83680097]
[1741650517938,1.50841894,119.36,119.29,7.5251]
[1741650517939,1.50841894,119.36,119.29,43.83680097]
[1741650518140,0.28432314,119.33,119.22,8.3876]
[1741650518443,91.92841894,119.32,119.21,15.9134]
[1741650518647,178.72841894,119.32,119.24,20.0]
[1741650518853,168.88432314,119.31,119.21,7.5251]
[1741650519030,169.8240958,119.3,119.21,51.36190097]
[1741650519234,8.3843,119.27,119.2,43.83680097]
[1741650519543,8.64,119.26,119.19,0.31551664]
[1741650519741,8.64,119.26,119.22,43.83680097]
[1741650520047,221.66,119.27,119.22,43.83680097]
[1741650520048,221.66,119.27,119.25,43.83680097]
[1741650520342,221.66,119.27,119.26,43.83680097]
[1741650520547,221.66,119.27,119.25,20.0]
[1741650520942,221.66,119.27,119.23,43.83680097]
[1741650521138,8.68,119.26,119.19,0.31551664]
[1741650521347,9.9040958,119.26,119.19,0.31551664]
[1741650521647,8.68,119.26,119.21,43.83680097]
[1741650521958,18.2891958,119.26,119.22,20.0]
[1741650522139,0.28432314,119.25,119.19,44.15231761]
[1741650522343,18.2891958,119.26,119.2,43.83680097]
[1741650522344,91.7040958,119.26,119.2,43.83680097]
[1741650522655,100.0890958,119.26,119.19,44.15231761]
[1741650522852,0.28432314,119.25,119.19,0.31551664]
[1741650523054,1.2240958,119.24,119.19,0.31551664]
[1741650523441,9.6109958,119.24,119.2,20.0]
[1741650523639,1.50841894,119.25,119.2,20.0]
[1741650524054,177.28,119.26,119.2,20.0]
[1741650524353,1.2240958,119.25,119.2,20.0]
[1741650524553,177.28,119.26,119.2,20.0]
[1741650525055,177.28,119.26,119.22,43.83680097]
[1741650525056,168.6,119.26,119.22,43.83680097]
[1741650525232,221.66,119.27,119.23,43.83680097]
[1741650525633,221.66,119.27,119.24,20.0]
[1741650526230,221.66,119.27,119.22,8.3877]
[1741650526429,221.66,119.27,119.23,43.83680097]
[1741650526654,221.66,119.27,119.22,8.3877]
[1741650526827,221.66,119.27,119.25,20.0]
[1741650527342,221.66,119.27,119.24,43.83680097]
[1741650527544,221.66,119.27,119.23,43.83680097]
[1741650527741,221.66,119.27,119.2,8.3891]
[1741650527944,221.66,119.27,119.2,43.83680097]
[1741650528246,1.2240958,119.26,119.19,0.31551664]
[1741650528551,0.28432314,119.25,119.19,0.31551664]
[1741650528853,1.2240958,119.24,119.2,20.0]
[1741650529153,8.78,119.23,119.2,20.0]
[1741650529358,1.50841894,119.22,119.19,0.31551664]
[1741650530441,1.2240958,119.22,119.19,0.31551664]
[1741650530641,83.0240958,119.22,119.19,0.31551664]
[1741650530960,8.78,119.23,119.19,8.70531664]
[1741650531159,8.78,119.23,119.2,43.83680097]
[1741650531374,8.78,119.23,119.22,43.83680097]
[1741650531656,8.78,119.23,119.21,43.83680097]
[1741650531853,308.46,119.27,119.22,43.83680097]
[1741650531854,221.66,119.27,119.22,43.83680097]
[1741650532056,8.82,119.26,119.24,43.83680097]
[1741650532253,8.82,119.26,119.23,63.83680097]
[1741650532556,8.82,119.26,119.23,20.0]
[1741650533056,8.82,119.26,119.23,63.83680097]
[1741650533556,8.82,119.26,119.24,52.22320097]
[1741650533859,8.8,119.29,119.24,52.22320097]
[1741650534049,8.8,119.29,119.24,8.3864]
[1741650534251,8.8,119.29,119.24,52.22320097]
[1741650535450,8.8,119.29,119.26,52.22180097]
[1741650535640,8.8,119.29,119.26,8.385]
[1741650536040,91.68931894,119.32,119.26,8.385]
[1741650536240,0.28432314,119.24,119.19,0.31551664]
[1741650536433,0.28432314,119.22,119.19,0.31551664]
[1741650536638,1.2240958,119.21,119.19,0.31551664]
[1741650537064,1.36625737,119.22,119.19,0.31551664]
[1741650537539,20.28432314,119.2,119.19,0.31551664]
[1741650537739,9.2484958,119.21,119.19,0.31551664]
[1741650537935,1.36625737,119.22,119.19,0.31551664]
[1741650538138,1.2240958,119.22,119.19,0.31551664]
[1741650538338,1.2240958,119.22,119.17,0.31551664]
[1741650538339,0.28432314,119.19,119.17,0.28396497]
[1741650538644,12.1037,119.23,119.18,0.25556847]
[1741650538845,8.86,119.22,119.18,0.25556847]
[1741650539367,8.86,119.22,119.18,44.09236944]
[1741650539569,8.86,119.22,119.18,52.48266944]
[1741650540247,230.92,119.25,119.21,63.83680097]
[1741650540438,0.063,119.27,119.24,63.83680097]
[1741650540642,0.063,119.27,119.25,63.83680097]
[1741650540860,0.063,119.27,119.26,43.83680097]
[1741650541056,0.063,119.27,119.26,44.12112411]
[1741650541266,0.063,119.27,119.26,43.83680097]
[1741650541763,0.063,119.27,119.26,52.22180097]
[1741650542261,0.063,119.27,119.25,63.83680097]
[1741650542462,0.063,119.27,119.25,52.22210097]
[1741650542661,0.063,119.27,119.26,43.97896254]
[1741650542967,0.063,119.27,119.26,44.12112411]
[1741650543546,8.82,119.34,119.31,43.83680097]
[1741650543764,8.3771,119.38,119.31,43.83680097]
[1741650543765,8.82,119.37,119.31,43.83680097]
[1741650544058,8.82,119.37,119.32,43.83680097]
[1741650547169,17.1973,119.37,119.31,74.35005221]
[1741650547359,17.1973,119.37,119.28,7.8582]
[1741650547561,18.4213958,119.37,119.28,82.21035221]
[1741650548771,18.4213958,119.37,119.3,8.3822]
[1741650549544,100.2213958,119.37,119.29,8.3827]
[1741650549755,8.82,119.37,119.32,65.96865221]
[1741650550374,8.82,119.37,119.32,85.96865221]
[1741650550668,8.82,119.37,119.32,20.0]
[1741650550970,8.82,119.37,119.32,94.34895221]
[1741650551157,8.82,119.37,119.32,20.0]
[1741650551351,17.1975,119.37,119.31,20.0]
[1741650551560,17.1975,119.37,119.3,8.3822]
[1741650552271,8.82,119.37,119.31,66.11081378]
[1741650552472,8.82,119.37,119.32,65.96865221]
[1741650552765,8.82,119.37,119.33,28.3801]
[1741650557367,8.82,119.37,119.36,20.0]
[1741650557677,222.14,119.4,119.34,66.11081378]
[1741650557872,8.74,119.39,119.34,66.11081378]
[1741650558054,230.88,119.4,119.36,0.14216157]
[1741650558249,230.88,119.4,119.37,20.0]
[1741650558948,222.14,119.4,119.36,20.0]
[1741650559174,8.74,119.42,119.37,74.34595221]
[1741650559477,7.3085,119.45,119.39,66.11081378]
[1741650559655,8.76,119.44,119.39,66.11081378]
[1741650560357,8.76,119.44,119.39,0.14216157]
[1741650560561,8.76,119.44,119.39,66.11081378]
[1741650560755,3.9419,119.46,119.4,20.0]
[1741650560961,8.74,119.46,119.4,85.96865221]
[1741650561161,8.74,119.46,119.4,115.28185221]
[1741650561555,81.863,119.49,119.44,20.0]
[1741650561556,0.063,119.49,119.44,20.0]
[1741650561786,0.063,119.49,119.42,65.96865221]
[1741650562075,8.4319,119.49,119.42,65.96865221]
[1741650562258,1.2240958,119.48,119.4,8.3752]
[1741650562858,91.4559958,119.49,119.4,74.34385221]
[1741650563087,1.2870958,119.49,119.42,65.96865221]
[1741650563259,0.063,119.49,119.45,20.0]
[1741650563582,8.4321,119.49,119.43,20.0]
[1741650563783,1.2240958,119.48,119.4,7.3752]
[1741650564073,9.6561958,119.49,119.4,73.34385221]
[1741650564282,9.6561958,119.49,119.43,20.0]
[1741650564679,0.063,119.49,119.43,20.0]
[1741650565174,0.063,119.49,119.43,85.96865221]
[1741650565381,0.063,119.49,119.43,28.3729]
[1741650565977,0.063,119.49,119.37,87.5581]
[1741650565978,0.063,119.49,119.41,65.96865221]
[1741650566175,1.57141894,119.49,119.41,8.3745]
[1741650566476,1.57141894,119.49,119.41,20.0]
[1741650566859,0.28432314,119.46,119.38,8.3766]
[1741650567058,8.3724,119.44,119.37,8.51946157]
[1741650567286,8.84,119.45,119.4,20.0]
[1741650567463,8.84,119.45,119.39,43.92105605]
[1741650567865,8.84,119.45,119.38,43.92105605]
[1741650568064,17.2117,119.45,119.4,20.0]
[1741650568477,8.84,119.45,119.4,20.0]
[1741650569380,17.2118,119.45,119.4,20.0]
[1741650569588,17.2118,119.45,119.39,20.0]
[1741650569589,18.4358958,119.45,119.39,20.0]
[1741650570086,11.7604,119.44,119.39,20.0]
[1741650570470,11.7604,119.44,119.37,8.3773]
[1741650570671,1.2240958,119.43,119.35,8.52086157]
[1741650570984,11.7604,119.44,119.35,73.38861762]
[1741650570985,12.9844958,119.44,119.35,73.38861762]
[1741650571491,8.3731,119.43,119.35,73.38861762]
[1741650572397,1.50841894,119.42,119.35,8.3787]
[1741650572695,8.3731,119.43,119.35,52.29975605]
[1741650572892,8.3731,119.43,119.35,73.24645605]
[1741650573695,8.3731,119.43,119.35,8.3787]
[1741650573889,9.5971958,119.43,119.35,8.3787]
[1741650574106,11.8234,119.44,119.37,43.92105605]
[1741650574997,20.1958,119.44,119.37,43.92105605]
[1741650575188,21.4198958,119.44,119.35,73.24645605]
[1741650575395,21.4198958,119.44,119.35,29.3254]
[1741650575585,42.3508958,119.44,119.35,29.3254]
[1741650575780,42.3508958,119.44,119.35,73.24645605]
[1741650576172,42.3508958,119.44,119.35,29.3254]
[1741650576374,0.28432314,119.43,119.35,8.3787]
[1741650576574,1.2240958,119.42,119.35,8.3787]
[1741650577390,83.0240958,119.43,119.36,43.92105605]
[1741650577585,81.8,119.43,119.37,8.3773]
[1741650577901,90.1732,119.43,119.37,8.3773]
[1741650578702,1.2240958,119.42,119.36,20.0]
[1741650579071,91.3972958,119.43,119.36,20.0]
[1741650579994,91.3972958,119.43,119.36,28.3777]
[1741650580890,90.1732,119.43,119.36,28.3777]
[1741650581081,8.76,119.42,119.36,28.3777]
[1741650581294,8.76,119.42,119.36,20.0]
[1741650581497,9.9840958,119.42,119.34,0.14216157]
[1741650582208,8.3745,119.41,119.35,8.3787]
[1741650582778,17.1339,119.42,119.35,29.3254]
[1741650582980,17.1339,119.42,119.35,8.3787]
[1741650583492,18.3579958,119.42,119.35,8.3787]
[1741650584905,17.1339,119.42,119.35,8.3787]
[1741650585596,17.1339,119.42,119.35,29.3254]
[1741650586012,8.76,119.42,119.36,0.14216157]
[1741650586177,8.76,119.42,119.36,44.06321762]
[1741650586514,8.3732,119.43,119.37,8.3773]
[1741650586681,8.7,119.42,119.37,8.3773]
[1741650587099,8.68,119.41,119.37,8.3773]
[1741650588309,8.68,119.41,119.37,29.3205]
[1741650589024,11.8234,119.44,119.38,44.06321762]
[1741650589182,8.66,119.43,119.38,44.06321762]
[1741650589379,8.66,119.43,119.39,20.0]
[1741650590189,11.8234,119.44,119.38,44.06321762]
[1741650590387,20.4834,119.44,119.38,44.06321762]
[1741650590910,20.4834,119.44,119.4,20.0]
[1741650591383,28.8559,119.44,119.4,20.0]
[1741650596305,28.8559,119.44,119.39,20.0]
[1741650598628,20.4834,119.44,119.39,28.3757]
[1741650599501,28.8558,119.44,119.39,28.3757]
[1741650600820,0.063,119.44,119.42,20.0]
[1741650601324,8.4355,119.44,119.4,20.0]
[1741650601621,3.974,119.43,119.35,0.03]
[1741650601924,3.974,119.43,119.36,8.3776]
[1741650602128,7.8486,119.42,119.35,8.4083]
[1741650602324,8.54,119.41,119.35,0.03]
[1741650602926,3.8921,119.39,119.35,0.03]
[1741650603130,9.2372958,119.38,119.35,0.03]
[1741650603292,8.0132,119.38,119.35,0.03]
[1741650603796,83.30841894,119.37,119.35,0.03]
[1741650603993,8.56,119.36,119.35,0.03]
[1741650605358,16.938,119.36,119.29,8.3823]
[1741650605632,8.56,119.36,119.29,8.3823]
[1741650605812,8.56,119.36,119.3,0.14216157]
[1741650606005,8.56,119.36,119.29,8.3823]
[1741650606207,18.1622958,119.36,119.29,8.3823]
[1741650607143,8.56,119.36,119.29,8.3823]
[1741650607309,8.56,119.36,119.32,20.0]
[1741650607517,8.58,119.35,119.33,20.0]
[1741650607713,8.58,119.35,119.34,20.0]
[1741650608324,8.58,119.35,119.33,20.0]
[1741650608525,8.58,119.35,119.32,20.0]
[1741650609243,8.58,119.35,119.29,8.3829]
[1741650609634,8.58,119.35,119.34,0.03]
[1741650612152,16.9587,119.35,119.34,0.03]
[1741650612459,20.8089,119.35,119.34,0.03]
[1741650613152,102.89322314,119.35,119.29,20.0]
[1741650613458,102.89322314,119.35,119.29,28.3827]
[1741650613754,102.89322314,119.35,119.29,8.3827]
[1741650614053,102.89322314,119.35,119.29,28.3827]
[1741650614234,104.11731894,119.35,119.29,28.3827]
[1741650614751,94.2302,119.35,119.29,28.3827]
[1741650614957,103.8329958,119.35,119.29,20.0]
[1741650615127,8.15722314,119.34,119.27,0.03]
[1741650615333,1.2240958,119.33,119.27,0.03]
[1741650615553,1.2240958,119.33,119.27,8.4142]
[1741650615736,1.2240958,119.33,119.27,20.03]
[1741650615959,1.2240958,119.33,119.27,0.03]
[1741650616268,1.2240958,119.33,119.27,20.03]
[1741650616426,1.2240958,119.33,119.27,0.03]
[1741650617040,1.2240958,119.33,119.28,20.0]
[1741650617246,7.8729,119.34,119.28,20.0]
[1741650617880,8.52,119.33,119.27,43.95105605]
[1741650618066,3.8502,119.35,119.32,20.0]
[1741650618231,12.3702,119.35,119.33,20.0]
[1741650618933,8.52,119.35,119.33,28.3798]
[1741650619460,8.52,119.35,119.32,28.3805]
[1741650620366,8.52,119.35,119.32,93.25355605]
[1741650620835,8.583,119.35,119.32,49.3325]
[1741650621263,7.9218,119.41,119.37,20.0]